Cogmind - Beta 16 @@@ ROGUE MODE // 2026.02.09 @ 16:43:10 Player: verv Result: Self-destructed Performance ------------- Evolutions (1) 500 Regions Visited (2) 400 Robots Destroyed (18) 90 Value Destroyed (543) 543 Prototype IDs (0) 0 Alien Tech Used (0) 0 Bonus (0) 0 TOTAL SCORE: 1533 Bonus ------- None Cogmind --------- Core Integrity 368/400 Matter 195/300 Energy 235/250 System Corruption 0% Temperature Warning (318) Movement Treading (480) Ox4 Location -9/Materials Parts ------- > --- POWER (1) -------- Ion Engine > --- PROPULSION (2) --- Light Treads > --- UTILITY (4) ------ Huge Storage Unit ECM Suite Hardened Light Armor Plating > --- WEAPON (2) ------- Medium Laser > --- INVENTORY (25) --- Sensor Array Light Armor Plating Medium Laser Light Assault Rifle Light Assault Rifle Datajack Mining Laser Hammer Peak State ------------ > --- POWER ------------ Ion Engine > --- PROPULSION ------- Light Treads Light Treads > --- UTILITY ---------- Huge Storage Unit ECM Suite Hardened Light Armor Plating > --- WEAPON ----------- Medium Laser > --- INVENTORY -------- Sensor Array Light Armor Plating Medium Laser Light Assault Rifle Light Assault Rifle Datajack Mining Laser Hammer [Rating: 8] Favorites ----------- Power Ion Engine Engine Ion Engine Propulsion Light Treads Treads Light Treads Utility ECM Suite Device ECM Suite Storage Huge Storage Unit Protection Hardened Light Armor Plating Weapon Medium Laser Energy Gun Medium Laser Ballistic Gun Light Assault Rifle Launcher Grenade Launcher Build | -11 -10 -9 ------- Run | Yrd Mat Mat Slots Evolved 2 | . . 2 Power . | . . . Propulsion . | . . . Utility 2 | . . 2 Weapon . | . . . Parts Attached 11 | 6 4 1 Power 1 | 1 . . Engine 1 | 1 . . Core . | . . . Reactor . | . . . Propulsion 2 | 2 . . Treads 2 | 2 . . Leg . | . . . Wheel . | . . . Hover . | . . . Flight . | . . . Utility 4 | 1 2 1 Device 1 | . 1 . Storage 2 | 1 1 . Processor . | . . . Hackware . | . . . Protection 1 | . . 1 Artifact . | . . . Weapon 4 | 2 2 . Energy Gun 2 | 2 . . Energy Cannon . | . . . Ballistic Gun 1 | . 1 . Ballistic Cannon . | . . . Launcher 1 | . 1 . Special Weapon . | . . . Impact Weapon . | . . . Slashing Weapon . | . . . Piercing Weapon . | . . . Special Melee Weapon . | . . . Unidentified Prototypes . | . . . Parts Lost 2 | . 1 1 Power . | . . . Propulsion 1 | . . 1 Utility . | . . . Weapon 1 | . 1 . Highest Loss Streak 1 | . 1 1 To Critical Strikes . | . . . Average Backups 5 | . 5 8 Power . | . . . Propulsion . | . . . Utility 1 | . 1 2 Weapon 3 | . 3 5 Tool/Special . | . . . Unused Backups 6 | . . 6 Power . | . . . Propulsion . | . . . Utility 2 | . . 2 Weapon 3 | . . 3 Tool/Special 1 | . . 1 Average Slot Usage (%) 86 | . 90 66 Engine 13 | . 14 11 Treads 26 | . 28 21 Device 12 | . 12 11 Storage 13 | . 14 11 Energy Gun 14 | . 15 11 Ballistic Gun 1 | . 1 . Launcher 3 | . 3 . Peak Build Rating 8 | 6 7 8 Average Rating 6 | 4 6 6 On Entrance 4 | . 6 6 Avg Prop Armor Cover (%) . | . . . Naked Turns . | . . . Heaviest Build 92 | 14 92 89 Greatest Support 40 | 40 40 40 Greatest Overweight (x) 2 | . 2 2 Average Overweight (x) . | . . 2 Largest Inventory Capacity 25 | 8 25 25 Average Capacity 18 | 7 17 25 Most Carried 9 | 4 8 9 Average Carried 5 | . 5 8 Final Capacity 25 | 8 25 25 Final Carried 8 | . 8 8 Class Distribution -------------------- 100% | Mutant Dominant Class ---------------- Mutant | -10/Materials Mutant | -9/Materials Resources | -11 -10 -9 ----------- Run | Yrd Mat Mat Matter Collected 330 | 164 139 27 Remotely . | . . . Salvage Created 487 | . 398 89 Parts 27 | . 24 3 Haulers Intercepted . | . . . Recyclers Shooed 2 | . 2 . Parts Field Recycled . | . . . Retrieved Matter . | . . . Parts Self-Destructed . | . . . Prevented . | . . . Parts Restored . | . . . Kills | -11 -10 -9 ------- Run | Yrd Mat Mat Combat Hostiles Destroyed 13 | . 12 1 Guns 5 | . 4 1 AOE 8 | . 8 . Classes Destroyed 4 | . 4 . Worker 3 | . 1 2 Mechanic 1 | . 1 . Watcher 1 | . 1 . Grunt 13 | . 12 1 Best Kill Streak 9 | . 9 2 Combat Bots Only 7 | . 7 1 Max Kills in Single Turn 4 | . 4 1 Gunslinging . | . . . Exploded 2 | . 2 . Melee . | . . . Uniques/NPCs Destroyed . | . . . Combat | -11 -10 -9 -------- Run | Yrd Mat Mat Hostile Shots Fired 51 | . 27 24 Missed 13 | . 7 6 Hits 38 | . 20 18 Projectile 38 | . 20 18 Damage Taken 488 | . 283 205 Core 43 | . 11 32 Absorbed by Shields . | . . . Core Remaining (%) 97 | 100 95 . Volleys Fired 46 | . 26 20 Largest 2 | . 2 1 Hottest 80 | . 80 50 Shots Fired 60 | . 40 20 Gun 46 | . 26 20 Cannon . | . . . Launcher 14 | . 14 . Special . | . . . Kinetic . | . . . Thermal 46 | . 26 20 Explosive 14 | . 14 . Electromagnetic . | . . . Robot Hit Streak 16 | . 16 3 Robot Miss Streak 3 | . 2 3 Penetration Max . | . . . Secondary Targets . | . . . Shots Hit Robots 37 | . 27 10 Core Hits 36 | . 30 6 Critical Kills . | . . . Critical Parts Destroyed . | . . . Critical Strikes 4 | . 3 1 Burn 4 | . 3 1 Melee Attacks . | . . . Impact . | . . . Slashing . | . . . Piercing . | . . . Sneak Attacks . | . . . Combat Hostiles . | . . . Follow-up Attacks . | . . . Damage Inflicted 1202 | . 1053 149 Guns 399 | . 250 149 Cannons . | . . . Explosions 799 | . 799 . Melee . | . . . Ramming 4 | . 4 . Kinetic . | . . . Thermal 399 | . 250 149 Explosive 799 | . 799 . Electromagnetic . | . . . Impact . | . . . Slashing . | . . . Piercing . | . . . Highest Corruption . | . . . Average Corruption . | . . . Corruption Purged . | . . . Corruption Blocked . | . . . Overload Shots . | . . . Overflow Damage 14 | . 14 . Projectiles . | . . . Explosions 14 | . 14 . Melee . | . . . Knockbacks . | . . . Impact . | . . . Kinetic . | . . . Secondary . | . . . Self-Inflicted Damage 50 | . 50 . Shots 2 | . 2 . Rammed 1 | . 1 . Targets Rammed 1 | . 1 . Kicked . | . . . Crushed . | . . . Highest Temperature 318 | . 116 318 Average Temperature 64 | . 40 116 Received Heat Transfer 234 | . 126 108 Siege Activations . | . . . Martial Activations . | . . . Shielding Activations . | . . . Robots Disrupted . | . . . Combat Hostiles . | . . . Robots Corrupted . | . . . Combat Hostiles . | . . . Parts Fried . | . . . Impact Corruptions . | . . . Robots Melted . | . . . Combat Hostiles . | . . . Parts Melted 3 | . 2 1 Heat Transferred 1480 | . 962 518 Parts Sabotaged . | . . . Parts Stolen . | . . . Parts Stripped . | . . . Power Chain Reactions . | . . . Alert | -11 -10 -9 ------- Run | Yrd Mat Mat Maximum Alert Level 1 | . 1 . Low Security (%) 63 | 100 53 100 Level 1 36 | . 46 . Level 2 . | . . . Level 3 . | . . . Level 4 . | . . . Level 5 . | . . . High Security . | . . . Max Security . | . . . Peak Influence 331 | . 331 53 Initial 53 | . . 53 Average 137 | . 171 19 Influence Increases 494 | . 450 44 Destroy 0b10 Robot/C 260 | . 240 20 Destroy 0b10 Robot/NC 25 | . 15 10 Destroy Leader 72 | . 62 10 Successful Hack 15 | . 11 4 Disable Machine 45 | . 45 . Destroy Structure 77 | . 77 . Influence Decreases 469 | . 322 147 Entered New Map 75 | . . 75 Time Decay 374 | . 312 62 Lost Part 20 | . 10 10 Squads Dispatched 4 | . 3 1 Investigation 3 | . 2 1 Extermination . | . . . Reinforcement 1 | . 1 . Assault . | . . . Garrison . | . . . Intercept . | . . . Searches Triggered . | . . . Construction Impeded . | . . . Haulers Reinforced . | . . . Active Scanning Responses . | . . . Cargo Convoy Interrupts . | . . . Stealth | -11 -10 -9 --------- Run | Yrd Mat Mat Distress Signals 3 | . 3 . Communications Jammed . | . . . Distress Signals . | . . . Times Spotted 23 | . 20 3 Peak Tracking Total 5 | . 5 3 Tactical Retreats 2 | . 2 . ECM-based Alert Blocks 4 | . 4 . Traps | -11 -10 -9 ------- Run | Yrd Mat Mat Traps Triggered 3 | . 2 1 Indirectly . | . . . Trap Hack Attempts . | . . . Triggered . | . . . Disarmed . | . . . Reprogrammed . | . . . Reused . | . . . Traps Extracted . | . . . Installed . | . . . Triggered . | . . . Machines | -11 -10 -9 ---------- Run | Yrd Mat Mat Machines Disabled 3 | . 3 . Max in Single Turn 1 | . 1 . Machines Repaired . | . . . Machines Dismantled . | . . . Machines Sabotaged . | . . . Overloaded Fab Kills . | . . . Hacking | -11 -10 -9 --------- Run | Yrd Mat Mat Machines Accessed 6 | . 4 2 Terminals 4 | . 2 2 Fabricators . | . . . Repair Stations 1 | . 1 . Recycling Units 1 | . 1 . Scanalyzers . | . . . Garrison Access . | . . . Total Hacks 9 | . 5 4 Successful 6 | . 4 2 Failed 3 | . 1 2 Catastrophic . | . . . Database Lockouts . | . . . Manual . | . . . Terminals 7 | . 3 4 Fabricators . | . . . Repair Stations 1 | . 1 . Recycling Units 1 | . 1 . Scanalyzers . | . . . Garrison Access . | . . . Terminal Hacks 4 | . 2 2 Locate Traps 2 | . 1 1 Assault Status 1 | . 1 . Recall Investigation 1 | . . 1 Fabricator Hacks . | . . . Repair Station Hacks 1 | . 1 . Scan Component 1 | . 1 . Recycling Unit Hacks 1 | . 1 . Report Inventory 1 | . 1 . Scanalyzer . | . . . Garrison Access Hacks . | . . . Unauthorized Hacks . | . . . Terminals . | . . . Fabricators . | . . . Repair Stations . | . . . Recycling Units . | . . . Scanalyzers . | . . . Garrison Access . | . . . Data Cores Recovered . | . . . Used . | . . . Hacking Detections 1 | . . 1 Full Trace Events 1 | . . 1 Feedback Events . | . . . Feedback Blocked . | . . . Robot Schematics Acquired . | . . . Robots Built . | . . . Authchips . | . . . Time . | . . . Total Robot Build Rating . | . . . Part Schematics Acquired . | . . . Parts Built . | . . . Authchips . | . . . Time . | . . . Total Part Build Rating . | . . . Part Studies Acquired . | . . . Parts Repaired . | . . . Time . | . . . Parts Recycled . | . . . Recycled Matter . | . . . Retrieved Matter . | . . . Retrieved Components . | . . . Parts Scanalyzed . | . . . Part Schematics Acquired . | . . . Parts Damaged . | . . . Bothacking | -11 -10 -9 ------------ Run | Yrd Mat Mat Used RIF Installer . | . . . Robots Hacked . | . . . Non-combat . | . . . Combat . | . . . Robot Hacks Applied . | . . . Relay Couplers Released . | . . . Fabnet Peak Effective % . | . . . Robots Rewired . | . . . Allies Hacked . | . . . Hacks Repelled . | . . . Allies | -11 -10 -9 -------- Run | Yrd Mat Mat Total Allies . | . . . Largest Group . | . . . Highest-Rated Group . | . . . Highest-Rated Ally . | . . . Total Orders . | . . . Ally Attacks . | . . . Total Damage . | . . . Kills . | . . . Allies Corrupted . | . . . Allies Melted . | . . . Intel | -11 -10 -9 ------- Run | Yrd Mat Mat Active Infowar (turns) 1156 | . 941 215 ECM 1156 | . 941 215 Robot Analysis Total . | . . . Derelict Logs Recovered . | . . . Drone Launches . | . . . Drone Recoveries . | . . . Exploration | -11 -10 -9 ------------- Run | Yrd Mat Mat Turns Passed 1310 | 69 1026 215 Spaces Moved 504 | 44 406 54 Core 11 | 11 . . Treads 493 | 33 406 54 Legs . | . . . Wheels . | . . . Hover . | . . . Flight . | . . . Fastest Speed 50 | 50 160 320 Average Speed 230 | 132 229 320 Slowest Speed 320 | 160 320 320 Overloaded Moves . | . . . Propulsion Burnouts . | . . . Robots Hopped . | . . . Potential Cave-ins . | . . . Cave-ins Triggered . | . . . Exploration Rate (%) 28 | 3 70 11 Regions Visited 2 Branch Regions . Pre-discovered Areas . | . . . Known Exits Taken . | . . . Unknown Exits Taken 2 | 1 1 . Scrap Searched . | . . . Spaces Dug . | . . . Terrain Destroyed 84 | . 84 . Melee . | . . . Projectile . | . . . AOE 84 | . 84 . Terrain Rammed . | . . . Walls Destroyed . | . . . Machines Disabled . | . . . Actions | -11 -10 -9 --------- Run | Yrd Mat Mat Total 592 | 55 461 76 Wait 14 | . 14 . Move 502 | 43 405 54 Hop . | . . . Pick Up 17 | 6 10 1 Fast Attach . | . . . Attach 8 | 6 1 1 Detach . | . . . Swap 3 | . 3 . Drop 1 | . 1 . Fire 46 | . 26 20 Melee . | . . . Ram . | . . . Kick . | . . . Crush 1 | . 1 . Escape Stasis . | . . . Rewire . | . . . Trap . | . . . Miscellaneous . | . . . Route ------- -11/Scrapyard -10/Materials (discovered 3 exits: *Mat x2 / [*Min]) -9/Materials History --------- Turn | Location | Event 7 | -11/Scrapyard | Discovered new exit (range 15) 70 | -11/Scrapyard | Entered Materials 307 | -10/Materials | Build established: Mutant 423 | -10/Materials | Destroyed 7 combat bots 486 | -10/Materials | Discovered new exit (range 15) 757 | -10/Materials | Discovered new exit (range 15) 1045 | -10/Materials | Discovered new exit (range 15) 1096 | -10/Materials | Entered another Materials area 1096 | -9/Materials | Evolved 2 slots: Utility x2 1311 | -9/Materials | Self-destructed Last Messages --------------- investigation squad. Acquired 27 matter. U-05 Engineer lays Concrete. Acquired Hrd. Light Armor Plating. K-01 Serf collects debris. K-01 Serf cleans the Processing Tank. U-05 Engineer destroyed. R-06 Scavenger collects Lgt. Ion Engine. Ion Engine melted. G-34 Mercenary destroyed. K-01 Serf collects debris. R-06 Scavenger collects Terrain Scanner. Lgt. Treads destroyed. K-01 Serf cleans the Processing Tank. K-01 Serf destroyed. R-06 Scavenger collects Lgt. Ion Engine. G-34 Mercenary suffers critical hit (Burn). R-06 Scavenger collects Sml. Laser. K-01 Serf collects debris. R-06 Scavenger collects Med. Matter Pod. Map ----- +----------------------------------------------------+ | ?????????????????????????????????????????????????? | | ?????????????????????????????????????????????????? | | ?????????????????????????????????????????????????? | | ?????????????????????????????????????????????????? | | ?????????????????????????????????????????????????? | | ?????????????????????????????????????????????????? | | ?????????????????????????????????????????????????? | | ?????????????????????????????????????????????????? | | ?????????????????????????????????????????????????? | | ?????????????????????????????????????????????????? | | ?????????????????????????????????????????????????? | | ?????????????????????????#???????????????????????? | | ???????????????????????? ???????????????????????? | | ????????????????????????= """????????????????????? | | ????????????????????????= """????????????????????? | | ???????????????????????? ????????????????????? | | ??????????????????????? ????????????????????? | | ???????????????????????? ?????????????????????? | | ?????????????????????#?? ?????????????????????? | | ?????????????????????# ?? ?????????? ??????????? | | ?????????????????????#r###m#######??? #?????????? | | ?????????????????????#% g ### #?????????? | | ?????????????????????# r #?????????? | | ?????????????????????# g #?????????? | | ?????????????????????# ![ kr #?????????? | | ?????????????????????# !@ % """"" #?????????? | | ?????????????????????# ! """"" ##+###????? | | ?????????????????????# """"" #????? | | ?????????????????????# / "??? | | ?????????????????????# #????? | | ?????????????????????#+###+## #????? | | ????????????????????????????## ########## #????? | | ?????????????????????????????# # #????????? | | ?????????????????????????????# + #????????? | | ?????????????????????????????# # #????????? | | ?????????????????????????????# #??/ #????????? | | ?????????????????????????????# #????= #????????? | | ?????????????????????????????# #??????#????????? | | ?????????????????????????????# #???????????????? | | ?????????????????????????????# #?######????????? | | ?????????????????????????????# #? #????????? | | ?????????????????????????????# # #????????? | | ?????????????????????????????# # #????????? | | ?????????????????????????????# + """" #????????? | | ?????????????????????????????# # """" #????????? | | ?????????????????????????????# # """" ?????????? | | ?????????????????????????????# #?#####?????????? | | ?????????????????????????????# #???????????????? | | ?????????????????????????????# #???????????????? | | ?????????????????????????????# #???????????????? | +----------------------------------------------------+ Best States ------------- Heat Dissipation 28 Energy Generation 10 Energy Capacity 250 Matter Stores 225 Matter Capacity 300 Sight Range 16 Terrain Scan Density 10 ECM Strength 1 Armor Coverage 150 Evasion (%) 50 Recoil Reduction 2 Item Schematics ----------------- None Robot Schematics ------------------ None Fabricated ------------ Nothing Repaired ---------- Nothing Studied --------- None Alien Tech Used ----------------- None Achievements -------------- None Challenges ------------ None Game ------ Seed SigixChipRefractor Manual? 0 Play Time 00:07:45 Cumulative 5.1 hours Start 2026.02.09 @ 16:36:48 End 2026.02.09 @ 16:43:10 Sessions 1 Manual Loads 0 Difficulty Rogue Special Mode None Game No. 13 Rogue 13 Adventurer 0 Explorer 0 Win Type - Total 0 Types 0/0/0/0/0/0/0/0/0/0 Lore% 10 Gallery% 10 Achievement% 9 Wizard Run 0 Options --------- Layout 1 ASCII 0 Keyboard 0 Movement Mouse Keybinds 0 Fullscreen 2 Font 32/SmallcapsGlow Map View 50x35 Zoom Use 0% Tactical HUD 0 Map Filters NONE Filters NONE Steam 1 RUN: 531f3689-2b21-4797-91ea-24824403d21a